bitfinex-derivatives/quotes_BTCF0:USTF0_20260131
["timestamp","ask_amount","ask_price","bid_price","bid_amount"]
[1769891290101,0.00011741,77529.0,77516.0,0.30351837]
[1769891290300,0.14349949,77528.0,77516.0,0.30351837]
[1769891290497,0.14349949,77527.0,77516.0,0.29060137]
[1769891290700,0.00011741,77529.0,77516.0,0.29060137]
[1769891290902,0.14353394,77528.0,77516.0,0.29060137]
[1769891291202,0.14353394,77527.0,77515.0,0.27075679]
[1769891291405,0.14353394,77526.0,77515.0,0.27075679]
[1769891291606,0.14353394,77525.0,77515.0,0.27075679]
[1769891291796,0.14353394,77524.0,77515.0,0.27075679]
[1769891292002,0.14353394,77523.0,77515.0,0.27075679]
[1769891292196,0.14353394,77522.0,77507.0,0.012919]
[1769891292405,0.012916,77523.0,77504.0,0.012919]
[1769891292607,0.15264571,77522.0,77509.0,0.012919]
[1769891292801,0.012916,77528.0,77513.0,0.27075679]
[1769891293008,0.15264562,77527.0,77513.0,0.27075679]
[1769891293200,0.15264562,77526.0,77513.0,0.27075679]
[1769891293405,0.15264562,77525.0,77513.0,0.27075679]
[1769891293600,0.12064562,77524.0,77513.0,0.28367479]
[1769891293802,0.00011741,77529.0,77513.0,0.27075679]
[1769891294009,0.00011741,77529.0,77513.0,0.56135816]
[1769891294208,0.00011741,77529.0,77514.0,0.29060137]
[1769891294599,0.012916,77527.0,77513.0,0.27075679]
[1769891294806,0.012917,77521.0,77513.0,0.27075679]
[1769891295413,0.27453032,77521.0,77500.0,0.27075679]
[1769891295607,0.012918,77512.0,77500.0,0.27075679]
[1769891295802,0.00013034,77511.0,77500.0,0.27075679]
[1769891296005,3.4e-07,77511.0,77509.0,0.012919]
[1769891296208,0.012915,77533.0,77511.0,0.29060137]
[1769891296404,0.09296,77540.0,77520.0,0.27075679]
[1769891296604,0.012914,77536.0,77520.0,0.27075679]
[1769891296805,0.012915,77534.0,77520.0,0.27075679]
[1769891297007,0.09296,77540.0,77520.0,0.28367379]
[1769891297206,0.105874,77540.0,77521.0,0.30351837]
[1769891297410,0.105874,77540.0,77520.0,0.27075679]
[1769891297411,0.27453032,77533.0,77510.0,0.27075679]
[1769891297704,0.27453032,77531.0,77510.0,0.27075679]
[1769891297904,0.27453032,77523.0,77500.0,0.27075679]
[1769891298210,0.012918,77512.0,77500.0,0.27075679]
[1769891298608,0.093,77522.0,77506.0,0.012919]
[1769891298811,0.27453032,77535.0,77508.0,0.012919]
[1769891299012,0.012916,77524.0,77507.0,0.012919]
[1769891299213,0.012917,77520.0,77506.0,0.29060137]
[1769891299408,0.012916,77523.0,77506.0,0.29060137]
[1769891299910,0.12899647,77529.0,77506.0,0.29060137]
[1769891300104,0.012916,77523.0,77508.0,0.012919]
[1769891300302,0.12900812,77528.0,77508.0,0.012919]
[1769891300507,0.012916,77528.0,77518.0,0.27075679]
[1769891300705,0.289076,77530.0,77518.0,0.27075679]
[1769891301109,0.012916,77524.0,77518.0,0.27075679]
[1769891301615,0.012914,77537.0,77522.0,0.012916]
[1769891301814,0.012914,77535.0,77519.0,0.30351837]
[1769891302215,0.012916,77524.0,77518.0,0.27075679]
[1769891303610,0.27453032,77535.0,77518.0,0.27075679]
[1769891303815,0.27453032,77535.0,77518.0,0.28367379]
[1769891304014,0.40352762,77535.0,77518.0,0.28367379]
[1769891304716,0.012915,77531.0,77518.0,0.27075679]
[1769891305214,0.27453032,77535.0,77518.0,0.27075679]
[1769891305510,0.14095438,77534.0,77518.0,0.27075679]
[1769891305716,0.012915,77530.0,77518.0,0.27075679]
[1769891305917,0.14095438,77529.0,77518.0,0.27075679]
[1769891306113,0.14095438,77528.0,77518.0,0.27075679]
[1769891306311,0.14095438,77527.0,77518.0,0.27075679]
[1769891306511,0.012915,77530.0,77518.0,0.27075679]
[1769891306712,0.14106891,77529.0,77518.0,0.27075679]
[1769891306912,0.14106891,77528.0,77518.0,0.27075679]
[1769891307113,0.14106891,77527.0,77518.0,0.27075679]
[1769891307805,0.08806891,77527.0,77518.0,0.27075679]
[1769891308006,0.012916,77528.0,77518.0,0.27075679]
[1769891308716,0.27453032,77535.0,77518.0,0.27075679]
[1769891308717,0.012915,77529.0,77518.0,0.27075679]
[1769891309113,0.1289948,77534.0,77518.0,0.27075679]
[1769891309318,0.012915,77533.0,77519.0,0.30351837]
[1769891309514,0.012915,77531.0,77519.0,0.29060137]
[1769891309813,0.012915,77534.0,77519.0,0.29060137]
[1769891310014,0.012914,77540.0,77518.0,0.27075679]
[1769891310215,0.012913,77541.0,77526.0,0.29060137]
[1769891310517,0.27453032,77554.0,77518.0,0.27075679]
[1769891310518,0.012913,77543.0,77529.0,0.012915]
[1769891310918,0.012912,77547.0,77531.0,0.012915]
[1769891311114,0.012912,77547.0,77531.0,0.30351637]
[1769891311316,0.012913,77545.0,77531.0,0.012915]
[1769891311516,0.012913,77542.0,77527.0,0.012916]
[1769891311715,0.012914,77540.0,77524.0,0.30351737]
[1769891311916,0.012914,77540.0,77524.0,0.29060137]
[1769891312114,0.012913,77543.0,77524.0,0.29060137]
[1769891313118,0.012913,77541.0,77526.0,0.012916]
[1769891313319,0.012914,77539.0,77524.0,0.29060137]
[1769891313514,0.012916,77527.0,77518.0,0.27075679]
[1769891313715,0.012915,77530.0,77518.0,0.27075679]
[1769891314015,0.012914,77537.0,77521.0,0.29060137]
[1769891314220,0.012915,77534.0,77521.0,0.29060137]
[1769891314617,0.093,77538.0,77521.0,0.30351837]
[1769891314817,0.012914,77535.0,77521.0,0.29060137]
[1769891315018,0.27453032,77527.0,77499.0,0.34016]
[1769891315221,0.012917,77519.0,77502.0,0.01292]
[1769891315625,0.27453032,77517.0,77464.0,0.32190888]
[1769891315820,0.27453032,77495.0,77467.0,0.29060137]
[1769891316019,0.27075679,77480.0,77467.0,0.30352737]
[1769891316220,0.27075679,77480.0,77467.0,0.29060137]
[1769891316719,0.00011302,77479.0,77467.0,0.29060137]
[1769891316921,0.01303702,77479.0,77462.0,0.28368048]
[1769891317720,0.012924,77477.0,77462.0,0.28368048]
[1769891317919,0.00011302,77479.0,77462.0,0.28368048]
[1769891317920,0.012924,77475.0,77462.0,0.28368048]
[1769891318125,0.29476074,77475.0,77445.0,0.28368048]
[1769891318324,0.27075679,77455.0,77445.0,0.28368048]
[1769891318524,0.00011752,77454.0,77445.0,0.28368048]
[1769891320319,0.42387713,77453.0,77427.0,0.29661248]
[1769891320525,0.012929,77445.0,77427.0,0.28368048]
[1769891321124,0.00011752,77454.0,77427.0,0.28368048]
[1769891321327,0.00011752,77454.0,77430.0,0.012932]
[1769891321523,0.1291389,77453.0,77430.0,0.012932]
[1769891321729,0.1291389,77453.0,77433.0,0.012931]
[1769891322234,0.012928,77452.0,77433.0,0.012931]
[1769891322423,0.012928,77452.0,77430.0,0.30725006]
[1769891323023,0.29456929,77474.0,77445.0,0.29431806]
[1769891323229,0.012926,77463.0,77441.0,0.093]
[1769891323427,0.012927,77458.0,77439.0,0.43328]
[1769891323830,0.012928,77456.0,77439.0,0.43328]
[1769891324127,0.00013409,77455.0,77439.0,0.43328]
[1769891324323,0.012928,77452.0,77439.0,0.43328]
[1769891324526,0.00013409,77455.0,77439.0,0.093]
[1769891324723,0.012928,77452.0,77439.0,0.093]
[1769891324923,0.00013409,77455.0,77439.0,0.38731806]
[1769891325428,0.00013409,77455.0,77440.0,0.29431806]
[1769891325730,0.00013409,77455.0,77445.0,0.29431806]
[1769891326418,0.00013409,77455.0,77439.0,0.093]
[1769891326818,0.29456929,77442.0,77415.0,0.012934]
[1769891327024,0.012932,77430.0,77409.0,0.012935]
[1769891327223,0.012932,77430.0,77406.0,0.29431806]
[1769891328028,0.012932,77427.0,77406.0,0.29431806]
[1769891328230,0.012933,77425.0,77406.0,0.29431806]
[1769891328432,0.01307994,77426.0,77406.0,0.29431806]
[1769891328922,0.00014694,77426.0,77406.0,0.29431806]
[1769891329128,0.01293,77439.0,77418.0,0.012934]
[1769891329328,0.27149929,77441.0,77414.0,0.012934]
[1769891329527,0.01293,77439.0,77415.0,0.012934]
[1769891329732,0.012931,77436.0,77415.0,0.012934]
[1769891329929,0.012931,77436.0,77411.0,0.30725306]
[1769891330128,0.012931,77434.0,77411.0,0.30725306]
[1769891330428,0.012932,77431.0,77411.0,0.30725306]
[1769891330731,0.012931,77433.0,77413.0,0.012935]
[1769891331123,0.012931,77433.0,77415.0,0.012934]
[1769891331330,4.694e-05,77435.0,77419.0,0.012934]
[1769891331532,0.012931,77434.0,77415.0,0.012934]
[1769891332029,0.012931,77434.0,77417.0,0.012934]
[1769891332226,4.694e-05,77435.0,77417.0,0.012934]
[1769891332634,0.09308,77444.0,77417.0,0.29431806]
[1769891332823,0.09308,77444.0,77431.0,0.012932]
[1769891333023,0.09308,77444.0,77428.0,0.012932]
[1769891333531,0.09308,77444.0,77427.0,0.012932]
[1769891333928,0.09308,77444.0,77429.0,0.30725006]
[1769891334128,0.38764929,77459.0,77431.0,0.29431806]
[1769891334334,0.29456929,77469.0,77444.0,0.012929]
[1769891334630,0.012927,77458.0,77441.0,0.01293]
[1769891334830,0.012927,77461.0,77444.0,0.012929]
[1769891335229,0.012927,77459.0,77441.0,0.01293]
[1769891335629,0.012927,77457.0,77441.0,0.01293]
[1769891336031,0.012929,77445.0,77419.0,0.29431806]
[1769891336227,0.012927,77459.0,77432.0,0.012931]
[1769891336228,0.09308,77452.0,77432.0,0.012931]
[1769891336531,0.05608,77452.0,77434.0,0.012931]
[1769891336732,0.14204522,77451.0,77431.0,0.30725006]
[1769891337123,0.012928,77451.0,77431.0,0.30725006]
[1769891337324,0.012928,77451.0,77431.0,0.012932]
[1769891337524,0.29456929,77454.0,77427.0,0.106012]
[1769891337729,0.012928,77454.0,77434.0,0.012931]
[1769891337929,0.12913056,77453.0,77434.0,0.012931]
[1769891338334,0.012928,77454.0,77434.0,0.012931]
[1769891339032,0.012928,77453.0,77432.0,0.012931]
[1769891339228,0.012928,77451.0,77431.0,0.29431806]
[1769891339431,0.012928,77451.0,77430.0,0.27075679]
[1769891339628,0.012928,77451.0,77429.0,0.012932]
[1769891340125,0.012929,77449.0,77429.0,0.30725006]
[1769891340327,0.09308,77458.0,77438.0,0.01293]
[1769891340526,0.012928,77456.0,77435.0,0.012931]
[1769891340928,0.012927,77460.0,77438.0,0.29431806]
[1769891341136,0.012926,77468.0,77444.0,0.29431806]
[1769891341322,0.012926,77465.0,77446.0,0.012929]
[1769891341528,0.012926,77465.0,77446.0,0.30724706]
[1769891341831,0.29456929,77487.0,77460.0,0.30724506]
[1769891342023,0.29456929,77487.0,77462.0,0.30724406]
[1769891342224,0.12911722,77482.0,77462.0,0.29431806]
[1769891342535,0.09308,77489.0,77470.0,0.27075679]
[1769891342930,0.012923,77486.0,77470.0,0.27075679]
[1769891343230,0.01275178,77505.0,77470.0,0.27075679]
[1769891343231,0.29456929,77512.0,77480.0,0.30724106]
[1769891343432,0.12802361,77507.0,77483.0,0.012923]
[1769891343630,0.01292,77501.0,77480.0,0.30724106]
[1769891343830,0.01292,77499.0,77480.0,0.29431806]
[1769891344029,0.01292,77503.0,77480.0,0.30724106]
[1769891344232,0.01292,77501.0,77480.0,0.30724106]
[1769891344428,0.01292,77501.0,77480.0,0.012923]
[1769891344629,0.01292,77502.0,77479.0,0.012924]
[1769891344933,0.01292,77500.0,77480.0,0.012923]
[1769891345136,0.29456929,77502.0,77475.0,0.29431806]
[1769891345326,0.09308,77510.0,77474.0,0.09308]
[1769891345327,0.012923,77486.0,77474.0,0.09308]
[1769891345524,0.012923,77485.0,77474.0,0.09308]
[1769891346136,0.29456929,77497.0,77474.0,0.09308]
[1769891346435,0.29456929,77485.0,77458.0,0.09308]
[1769891346634,0.012926,77467.0,77458.0,0.09308]
[1769891346828,0.012925,77472.0,77458.0,0.09308]
[1769891347135,0.012926,77466.0,77458.0,0.09308]
[1769891347334,0.012926,77467.0,77458.0,0.09308]
[1769891347537,0.29456929,77479.0,77458.0,0.09308]
[1769891347835,0.27129308,77470.0,77449.0,0.00011967]
[1769891348135,0.012927,77457.0,77449.0,0.00011967]
[1769891348538,0.12602672,77469.0,77449.0,0.00011967]
[1769891348730,0.27129308,77470.0,77449.0,0.00011967]
[1769891349231,0.12909972,77468.0,77449.0,0.00011967]
[1769891349440,0.27129308,77470.0,77449.0,0.00011967]
[1769891349936,0.012927,77462.0,77449.0,0.00011967]
[1769891350529,0.012927,77460.0,77449.0,0.00011967]
[1769891352728,0.012927,77458.0,77449.0,0.00011967]
[1769891352926,0.012928,77456.0,77449.0,0.00011967]
[1769891353135,0.40040113,77469.0,77449.0,0.00011967]
[1769891353337,0.012927,77458.0,77449.0,0.00011967]
[1769891353642,0.012927,77462.0,77449.0,0.00011967]
[1769891353933,0.012927,77460.0,77449.0,0.00011967]
[1769891354328,0.012927,77458.0,77449.0,0.00011967]
[1769891354938,0.28421808,77471.0,77449.0,0.00011967]
[1769891355132,0.01292832,77468.0,77449.0,0.00011967]
[1769891355329,0.12814099,77467.0,77449.0,0.00011967]
[1769891355530,0.012927,77459.0,77449.0,0.00011967]
[1769891355734,0.2811484,77468.0,77449.0,0.00011967]
[1769891355931,0.12813543,77467.0,77449.0,0.00011967]
[1769891356139,0.39942851,77466.0,77449.0,0.00011967]
[1769891356339,0.00985532,77468.0,77449.0,0.00011967]
[1769891356340,0.39942851,77465.0,77449.0,0.00011967]
[1769891356638,0.27129308,77465.0,77449.0,0.00011967]
[1769891357041,0.012927,77457.0,77449.0,0.00011967]
[1769891357638,0.012928,77455.0,77449.0,0.00011967]
[1769891357836,0.27129308,77465.0,77446.0,0.09308]
[1769891357837,0.27129308,77458.0,77446.0,0.09308]
[1769891358041,0.012929,77447.0,77435.0,0.09308]
[1769891358442,0.012926,77464.0,77435.0,0.09308]
[1769891358443,0.012929,77450.0,77435.0,0.09308]
[1769891358637,0.28422208,77450.0,77435.0,0.09308]
[1769891358944,0.00011181,77449.0,77435.0,0.09308]
[1769891359636,0.13898421,77448.0,77435.0,0.08912618]
[1769891359844,0.12912889,77448.0,77435.0,0.08912618]
[1769891360039,0.00011181,77449.0,77435.0,0.08912618]
[1769891360440,0.00985532,77448.0,77435.0,0.08912618]
[1769891360759,0.2811484,77448.0,77435.0,0.08912618]
[1769891361848,0.00985532,77448.0,77435.0,0.08912618]
[1769891362941,0.34926921,77454.0,77435.0,0.08912618]
[1769891363137,0.27129308,77453.0,77435.0,0.08912618]
[1769891363336,0.28422208,77447.0,77435.0,0.08912618]
[1769891363943,0.01293,77443.0,77423.0,0.31150484]
[1769891364545,0.012931,77435.0,77419.0,0.09308]
[1769891364749,0.012931,77438.0,77420.0,0.29857184]
[1769891364949,0.01293,77442.0,77421.0,0.31150484]
[1769891365145,0.27129308,77448.0,77421.0,0.29857184]
[1769891365346,0.012931,77436.0,77421.0,0.29857184]
[1769891365648,0.01293,77439.0,77421.0,0.29857184]
[1769891366048,0.012931,77437.0,77421.0,0.29857184]
[1769891366447,0.012931,77435.0,77421.0,0.29857184]
[1769891366640,0.012931,77438.0,77421.0,0.29857184]
[1769891366841,0.012931,77436.0,77421.0,0.29857184]
[1769891367249,0.01293,77439.0,77421.0,0.29857184]
[1769891367651,0.01293,77439.0,77419.0,0.106014]
[1769891367845,0.27129308,77445.0,77423.0,0.012933]
[1769891368041,0.01293,77440.0,77422.0,0.012933]
[1769891368250,0.01293,77440.0,77422.0,0.31150484]
[1769891368450,0.01293,77442.0,77422.0,0.29857184]
[1769891368651,0.012929,77445.0,77429.0,0.31150384]
[1769891369250,0.012929,77445.0,77429.0,0.29857184]
[1769891369745,0.01293,77443.0,77429.0,0.29857184]
[1769891370148,0.12913723,77451.0,77429.0,0.29857184]
[1769891370350,0.12828833,77450.0,77425.0,0.31150484]
[1769891370547,0.25760287,77468.0,77425.0,0.31150484]
[1769891370548,0.01293,77442.0,77425.0,0.31150484]
[1769891370746,0.01293,77442.0,77427.0,0.012932]
[1769891371150,0.25760287,77469.0,77425.0,0.29857184]
[1769891371347,0.01293,77440.0,77424.0,0.012933]
[1769891371548,0.01293,77441.0,77424.0,0.31150484]
[1769891372152,0.01293,77441.0,77426.0,0.012932]
[1769891372550,0.01293,77439.0,77424.0,0.29857184]
[1769891372953,0.27129308,77443.0,77419.0,0.106014]
[1769891373252,0.012932,77432.0,77419.0,0.09308]
[1769891374147,0.27129308,77446.0,77423.0,0.29857184]
[1769891374454,0.012931,77437.0,77423.0,0.29857184]
[1769891374753,0.012931,77435.0,77421.0,0.012933]
[1769891375753,0.012931,77433.0,77418.0,0.012934]
[1769891376153,0.012932,77431.0,77416.0,0.29857184]
[1769891376358,0.28422408,77438.0,77410.0,0.29857184]
[1769891376548,0.27129308,77438.0,77410.0,0.29857184]
[1769891376854,0.012932,77431.0,77414.0,0.012934]
[1769891377247,0.24522508,77437.0,77414.0,0.012934]
[1769891377455,0.24522508,77437.0,77412.0,0.27418128]
[1769891377456,0.012932,77431.0,77412.0,0.27418128]
[1769891377651,0.12916141,77436.0,77413.0,0.012935]
[1769891377851,0.13026894,77435.0,77407.0,0.012936]
[1769891378054,0.14319994,77434.0,77407.0,0.28711728]
[1769891378250,0.12916141,77435.0,77409.0,0.27418128]
[1769891378556,0.09308,77439.0,77424.0,0.27418128]
[1769891378750,0.12998644,77438.0,77424.0,0.27418128]
[1769891378950,0.09308,77439.0,77421.0,0.012933]
[1769891379153,0.012931,77436.0,77418.0,0.012934]
[1769891379358,0.09308,77440.0,77421.0,0.012933]
[1769891379559,0.012931,77437.0,77423.0,0.27418128]
[1769891379755,0.012931,77435.0,77420.0,0.012933]
[1769891379960,0.09308,77440.0,77417.0,0.28711528]
[1769891380161,0.1298714,77439.0,77417.0,0.28711528]
[1769891380356,0.09308,77440.0,77417.0,0.27418128]
[1769891380654,0.012933,77425.0,77405.0,0.09308]
[1769891380858,0.012933,77425.0,77411.0,0.012935]
[1769891381059,0.012933,77425.0,77409.0,0.012935]
[1769891381459,0.29372582,77432.0,77406.0,0.2937813]
[1769891381855,0.012933,77421.0,77406.0,0.2937813]
[1769891382161,0.012932,77431.0,77406.0,0.2808453]
[1769891382362,0.012934,77419.0,77406.0,0.2808453]
[1769891382562,0.012933,77422.0,77407.0,0.012936]
[1769891383068,0.012934,77419.0,77402.0,0.28095299]
[1769891383369,0.09308,77440.0,77413.0,0.2937803]
[1769891383370,0.40022687,77435.0,77413.0,0.2937803]
[1769891383562,0.012933,77425.0,77413.0,0.2808453]
[1769891383963,0.01293,77439.0,77413.0,0.2808453]
[1769891384168,0.012931,77435.0,77421.0,0.2808453]
[1769891384565,0.012931,77433.0,77421.0,0.2808453]
[1769891385367,0.09308,77444.0,77412.0,0.2808453]
[1769891385368,0.012932,77429.0,77412.0,0.2808453]
[1769891385568,0.012932,77427.0,77403.0,0.2808453]
[1769891385769,0.012932,77427.0,77406.0,0.2808453]
[1769891386167,0.012932,77427.0,77410.0,0.012935]
[1769891386764,0.27105044,77437.0,77407.0,0.2937813]
[1769891386967,0.012933,77426.0,77407.0,0.2937813]
[1769891387172,0.012934,77415.0,77402.0,0.00010769]
[1769891387361,0.012934,77419.0,77403.0,0.2808453]
[1769891387566,0.09308,77425.0,77402.0,0.00010769]
[1769891387567,0.012933,77423.0,77405.0,0.2808453]
[1769891387869,0.09308,77425.0,77405.0,0.2808453]
[1769891388070,0.012933,77421.0,77405.0,0.2808453]
[1769891388265,0.012934,77419.0,77405.0,0.2808453]
[1769891388477,0.012934,77419.0,77402.0,0.00010769]
[1769891388772,0.012934,77415.0,77402.0,0.00010769]
[1769891389366,0.006934,77415.0,77402.0,0.00010769]
[1769891390371,0.27105044,77424.0,77402.0,0.00010769]
[1769891390674,0.012934,77417.0,77402.0,0.00010769]
[1769891391271,0.012934,77419.0,77402.0,0.00010769]
[1769891391471,0.012934,77417.0,77402.0,0.00010769]
[1769891391770,0.012931,77438.0,77402.0,0.00010769]
[1769891391771,0.27105044,77434.0,77408.0,0.012936]
[1769891391977,0.36417044,77441.0,77409.0,0.2808453]
[1769891392175,0.012932,77432.0,77413.0,0.2808453]
[1769891393176,0.012932,77430.0,77413.0,0.2808453]
[1769891393373,0.012932,77430.0,77411.0,0.012935]
[1769891393572,0.012932,77428.0,77411.0,0.012935]
[1769891394069,0.012932,77432.0,77411.0,0.012935]
[1769891394270,0.012932,77428.0,77411.0,0.012935]
[1769891394471,0.012932,77429.0,77410.0,0.012935]
[1769891394671,0.012932,77429.0,77412.0,0.012935]
[1769891395377,0.012932,77427.0,77412.0,0.012935]
[1769891395676,0.012932,77429.0,77413.0,0.2937803]
[1769891396073,0.37710144,77436.0,77413.0,0.2808453]
[1769891396277,0.36417044,77436.0,77413.0,0.2808453]
[1769891396478,0.012932,77428.0,77413.0,0.2808453]
[1769891396679,0.012932,77428.0,77410.0,0.012935]
[1769891396876,0.012932,77428.0,77412.0,0.012935]
[1769891397673,0.012932,77429.0,77414.0,0.012934]
[1769891397876,0.27105044,77436.0,77416.0,0.012934]
[1769891398380,0.012932,77428.0,77413.0,0.012935]
[1769891398882,0.012932,77431.0,77415.0,0.012934]
[1769891399084,0.27105044,77435.0,77414.0,0.012934]
[1769891399278,0.27105044,77435.0,77412.0,0.2808453]
[1769891399478,0.11732841,77434.0,77412.0,0.2808453]
[1769891399682,0.11732841,77433.0,77412.0,0.2808453]
[1769891399879,0.012933,77425.0,77410.0,0.012935]
[1769891400282,0.012933,77426.0,77409.0,0.2937803]
[1769891400475,0.012933,77426.0,77411.0,0.2937803]
[1769891400681,0.012933,77425.0,77409.0,0.012935]
[1769891400876,0.012933,77426.0,77404.0,0.2808453]
[1769891401178,0.012933,77423.0,77409.0,0.012935]
[1769891401377,0.25598344,77429.0,77409.0,0.012935]
[1769891401774,0.012933,77425.0,77411.0,0.012935]
[1769891402183,0.012931,77433.0,77419.0,0.2808453]
[1769891402484,0.106045,77469.0,77410.0,0.2808453]
[1769891402485,0.012932,77429.0,77410.0,0.2808453]
[1769891402685,0.01293,77440.0,77414.0,0.2808453]
[1769891402983,0.09312,77439.0,77414.0,0.2808453]
[1769891403184,0.012932,77429.0,77414.0,0.2808453]
[1769891403374,0.22228892,77439.0,77414.0,0.2808453]
[1769891403683,0.012933,77422.0,77414.0,0.2808453]
[1769891404078,0.012931,77436.0,77414.0,0.2808453]
[1769891404378,0.012933,77424.0,77414.0,0.2808453]
[1769891405079,0.012932,77427.0,77414.0,0.2808453]
[1769891405282,0.012931,77436.0,77414.0,0.2808453]
[1769891405584,0.012933,77425.0,77414.0,0.2808453]
[1769891406877,0.27105044,77424.0,77410.0,0.09858992]
[1769891407083,0.12916642,77424.0,77402.0,0.27634946]
[1769891407384,0.012934,77418.0,77403.0,0.28917777]
[1769891408085,0.012935,77414.0,77403.0,0.27624177]
[1769891408286,0.012933,77425.0,77403.0,0.27624177]
[1769891408482,0.012934,77415.0,77403.0,0.27624177]
[1769891408687,0.012933,77423.0,77403.0,0.27624177]
[1769891408883,0.012935,77413.0,77403.0,0.27624177]
[1769891409182,0.012935,77414.0,77403.0,0.27624177]
[1769891409385,0.012934,77417.0,77403.0,0.27624177]
[1769891409983,0.012934,77416.0,77403.0,0.27624177]
[1769891410182,0.012935,77414.0,77402.0,0.00010769]
[1769891410385,0.012935,77409.0,77402.0,0.00010769]
[1769891410686,0.012934,77418.0,77402.0,0.00010769]
[1769891411272,0.012935,77410.0,77402.0,0.00010769]
[1769891411680,0.28879293,77420.0,77402.0,0.00010769]
[1769891412083,0.28879293,77408.0,77384.0,0.28918077]
[1769891412481,0.012937,77398.0,77381.0,0.01294]
[1769891412781,0.30172693,77416.0,77391.0,0.28917977]
[1769891412976,0.012936,77405.0,77391.0,0.28917977]
[1769891413178,0.12932119,77415.0,77391.0,0.27624177]
[1769891413383,0.00011555,77415.0,77399.0,0.27624177]
[1769891413583,0.30184248,77415.0,77384.0,0.27624177]
[1769891413781,0.28879293,77411.0,77391.0,0.012938]
[1769891413983,0.00011555,77415.0,77393.0,0.28917977]
[1769891414889,0.012935,77411.0,77393.0,0.28917977]
[1769891415080,0.00011555,77415.0,77393.0,0.28917977]
[1769891415081,0.012936,77408.0,77393.0,0.28917977]
[1769891415280,0.00011555,77415.0,77393.0,0.28917977]
[1769891415481,0.012936,77406.0,77393.0,0.28917977]
[1769891415680,0.01304955,77415.0,77393.0,0.27624177]
[1769891415881,0.012936,77403.0,77393.0,0.27624177]
[1769891416081,0.012936,77406.0,77393.0,0.27624177]
[1769891416384,0.00011555,77415.0,77393.0,0.28917977]
[1769891416584,0.012936,77405.0,77393.0,0.28917977]
[1769891416981,0.012935,77414.0,77393.0,0.27624177]
[1769891417487,0.012936,77406.0,77393.0,0.27624177]
[1769891417681,0.012936,77404.0,77393.0,0.27624177]
[1769891417982,0.012936,77404.0,77381.0,0.01294]
[1769891417983,0.00011555,77415.0,77398.0,0.27624177]
[1769891418182,0.28879293,77421.0,77392.0,0.09312]
[1769891418388,0.012936,77407.0,77393.0,0.27624177]
[1769891418590,0.28566293,77420.0,77394.0,0.012938]
[1769891418890,0.012936,77408.0,77394.0,0.012938]
[1769891419187,0.012936,77406.0,77393.0,0.27624177]
[1769891419589,0.34068,77420.0,77393.0,0.27624177]
[1769891420089,0.12919729,77416.0,77393.0,0.27624177]
[1769891420388,0.34068,77420.0,77393.0,0.27624177]
[1769891420687,0.41798438,77419.0,77393.0,0.27624177]
[1769891420886,0.41798438,77419.0,77379.0,0.28918177]
[1769891420887,0.012938,77396.0,77379.0,0.28918177]
[1769891421089,0.012938,77394.0,77379.0,0.27624177]
[1769891421587,0.28879293,77389.0,77370.0,0.27158267]
[1769891421792,0.12919145,77393.0,77370.0,0.27158267]
[1769891422086,0.012938,77395.0,77376.0,0.012941]
[1769891422291,0.012938,77392.0,77377.0,0.27624177]
[1769891422492,0.012939,77389.0,77370.0,0.54782444]
[1769891422695,0.28879293,77397.0,77370.0,0.54782444]
[1769891422696,0.012939,77386.0,77371.0,0.27624177]
[1769891423092,0.28879293,77394.0,77371.0,0.27624177]
[1769891423792,0.12922818,77393.0,77371.0,0.27624177]
[1769891423987,0.01294,77383.0,77371.0,0.27624177]
[1769891424187,0.01294,77383.0,77370.0,0.27158267]
[1769891424188,0.09312,77392.0,77370.0,0.27158267]
[1769891424389,0.01294,77380.0,77370.0,0.27153267]
[1769891424585,0.41802361,77391.0,77370.0,0.27153267]
[1769891424786,0.09312,77392.0,77351.0,0.15488241]
[1769891424787,0.012942,77368.0,77351.0,0.15488241]
[1769891424983,0.28879293,77372.0,77350.0,0.27158267]
[1769891425190,0.012944,77360.0,77348.0,0.27624177]
[1769891425584,0.012943,77361.0,77348.0,0.27624177]
[1769891425786,0.28879293,77372.0,77340.0,0.27624177]
[1769891425787,0.27773593,77372.0,77340.0,0.27624177]
[1769891426086,0.012943,77367.0,77323.0,0.15488241]
[1769891426294,0.012948,77334.0,77310.0,0.012952]
[1769891426494,9.125e-05,77333.0,77310.0,0.012952]
[1769891426789,9.125e-05,77333.0,77312.0,0.01300593]
[1769891427193,9.125e-05,77333.0,77313.0,0.01300593]
[1769891427386,0.01295,77323.0,77300.0,0.27158267]
[1769891427586,0.01295,77319.0,77300.0,0.54782444]
[1769891427792,0.01295,77324.0,77301.0,0.27624177]
[1769891427988,0.012948,77332.0,77309.0,0.27624177]
[1769891428293,0.012952,77308.0,77284.0,0.27624177]
[1769891428489,0.30174593,77304.0,77280.0,0.27158267]
[1769891428693,0.14232605,77307.0,77281.0,0.27624177]
[1769891428891,4.125e-05,77307.0,77288.0,0.27624177]
[1769891429098,0.012951,77317.0,77291.0,0.01300593]
[1769891429295,0.30174393,77314.0,77286.0,0.27624177]
[1769891429598,0.012952,77310.0,77287.0,0.27624177]
[1769891429788,0.28879293,77309.0,77280.0,0.28453967]
[1769891429994,0.012954,77300.0,77280.0,0.26158267]
[1769891430193,0.00010542,77299.0,77280.0,0.26158267]
[1769891430395,0.12935941,77308.0,77287.0,0.01300593]
[1769891430692,0.012952,77313.0,77287.0,0.2892477]
[1769891430897,0.09316,77329.0,77304.0,0.2892477]
[1769891431200,0.09316,77334.0,77310.0,0.2892477]
[1769891431398,0.012949,77325.0,77310.0,0.27624177]
[1769891431590,0.012951,77318.0,77292.0,0.27624177]
[1769891431789,0.28879293,77332.0,77296.0,0.27624177]
[1769891432094,0.01295,77322.0,77298.0,0.27624177]
[1769891432494,5.903e-05,77333.0,77311.0,0.27624177]
[1769891432703,5.903e-05,77333.0,77320.0,0.27624177]
[1769891433096,0.0932,77348.0,77324.0,0.27624177]
[1769891433292,0.0932,77348.0,77331.0,0.27624177]
[1769891433493,0.0932,77361.0,77333.0,0.27624177]
[1769891433696,0.106143,77361.0,77341.0,0.27624177]
[1769891434194,0.106143,77361.0,77329.0,0.0932]
[1769891434195,0.01294,77379.0,77352.0,0.27624177]
[1769891434393,0.0932,77392.0,77364.0,0.27624177]
[1769891434593,0.12930588,77403.0,77370.0,0.27624177]
[1769891434798,0.28879293,77413.0,77384.0,0.27624177]